bitfinex/quotes_ETHUSD_20250930
["timestamp","ask_amount","ask_price","bid_price","bid_amount"]
[1759226352228,0.6649,4147.8,4147.3,2.41120098]
[1759226352542,0.6649,4147.8,4147.0,2.41137318]
[1759226352842,0.6649,4147.8,4147.3,2.41116204]
[1759226353028,0.2332,4147.8,4147.0,2.04163732]
[1759226353222,0.2332,4147.8,4147.5,2.41104776]
[1759226353413,0.2332,4147.8,4147.3,2.41119888]
[1759226353815,2.87,4147.9,4147.0,2.04163732]
[1759226354144,2.87,4147.9,4147.6,2.41100106]
[1759226354345,2.867,4148.1,4148.0,2.41075926]
[1759226354653,2.867,4148.1,4148.0,2.41080038]
[1759226354973,2.867,4148.1,4148.0,2.64840038]
[1759226355338,2.867,4148.1,4148.0,2.41080038]
[1759226355548,2.867,4148.1,4148.0,16.91080038]
[1759226357482,2.867,4148.1,4147.3,2.866]
[1759226357483,2.4,4148.0,4146.0,2.4]
[1759226357684,3.20396333,4146.0,4145.9,3.28546697]
[1759226357960,3.192,4145.1,4144.1,2.41306208]
[1759226358157,6.8426,4145.1,4144.0,0.2283]
[1759226358538,6.8647289,4145.1,4144.2,2.41300789]
[1759226358733,6.0727289,4145.1,4144.3,2.64124281]
[1759226359166,6.0727289,4145.1,4144.4,2.41289103]
[1759226359363,6.0727289,4145.1,4144.3,0.2283]
[1759226359558,6.0727289,4145.1,4144.3,2.64124903]
[1759226359759,9.98081593,4145.1,4144.1,2.41305373]
[1759226359933,11.15288005,4145.1,4144.1,2.41305373]
[1759226360137,11.15288005,4145.1,4144.2,14.5]
[1759226360543,8.74039302,4145.1,4144.2,14.5]
[1759226360945,8.74039302,4145.1,4144.3,2.41293585]
[1759226361147,8.74039302,4145.1,4144.2,14.5]
[1759226361351,11.15288005,4145.1,4144.2,14.5]
[1759226361553,8.74039302,4145.1,4144.2,16.91299693]
[1759226361873,8.03679302,4145.1,4144.2,17.14130544]
[1759226362052,6.8647289,4145.1,4144.5,0.2283]
[1759226362370,6.8647289,4145.1,4144.8,2.41265211]
[1759226362371,6.0727289,4145.1,4144.8,2.41265211]
[1759226362554,6.0727289,4145.1,4144.7,0.2283]
[1759226362751,6.0727289,4145.1,4145.0,0.502]
[1759226362966,6.0727289,4145.1,4145.0,0.7303]
[1759226363273,5.347,4145.1,4145.0,3.59794523]
[1759226363645,5.347,4145.1,4145.0,2.91454523]
[1759226363843,5.347,4145.1,4145.0,3.14284523]
[1759226364174,5.347,4145.1,4145.0,3.59794523]
[1759226364491,2.4,4145.1,4145.0,0.502]
[1759226364782,2.4,4145.1,4145.0,3.14284523]
[1759226365084,5.341,4145.2,4145.1,2.41248703]
[1759226366166,2.941,4145.2,4145.1,17.14078703]
[1759226366351,0.792,4146.2,4145.1,17.14078703]
[1759226366352,0.2297,4146.5,4145.2,2.41242883]
[1759226366553,0.792,4146.2,4145.0,0.502]
[1759226366788,0.72551478,4145.6,4145.0,1.1854]
[1759226367084,2.936,4145.5,4145.2,2.41242727]
[1759226367385,2.936,4145.5,4145.3,2.4123467]
[1759226367848,2.936,4145.5,4145.1,0.1208]
[1759226368049,2.936,4145.5,4141.6,14.5]
[1759226368050,2.257458,4145.1,4141.6,14.5]
[1759226368244,2.934,4145.0,4142.7,2.41388466]
[1759226368482,0.792,4144.8,4143.0,2.41370987]
[1759226368794,0.792,4144.8,4142.8,0.70753826]
[1759226368795,0.792,4144.6,4143.2,2.41359335]
[1759226368959,1.2659,4144.6,4143.3,15.04041299]
[1759226369152,3.8956,4144.6,4143.6,2.41330325]
[1759226369343,0.4739,4144.5,4143.3,0.76721299]
[1759226369548,2.4,4144.3,4143.3,0.76721299]
[1759226369966,2.4,4144.3,4143.8,2.41323846]
[1759226370168,2.4,4144.3,4143.7,14.5]
[1759226370446,2.4,4144.3,4143.7,15.1834]
[1759226370673,2.4,4144.3,4144.1,2.41301453]
[1759226370857,2.4,4144.3,4144.2,2.41301095]
[1759226371384,2.4,4144.3,4144.2,14.5]
[1759226371846,2.4,4144.3,4144.2,16.91301095]
[1759226372455,2.4,4144.3,4144.2,14.5]
[1759226372777,2.4,4144.3,4144.2,16.91301095]
[1759226373650,5.399,4144.4,4144.3,2.41295273]
[1759226373856,0.72575875,4144.7,4144.6,2.41277807]
[1759226374085,0.72575875,4144.7,4144.6,2.86787807]
[1759226374380,2.989,4145.1,4145.0,2.41254523]
[1759226374586,0.51043385,4145.3,4145.2,2.41242883]
[1759226374587,0.72556742,4145.3,4145.2,2.41242883]
[1759226374886,2.988,4145.5,4145.4,2.41231244]
[1759226375178,2.988,4145.5,4145.4,16.91231244]
[1759226375550,1.2368363,4146.0,4145.4,15.1834]
[1759226375748,3.71249548,4146.0,4145.9,2.41202151]
[1759226376279,6.11249548,4146.0,4145.9,2.41202151]
[1759226376485,3.71249548,4146.0,4145.9,2.41202151]
[1759226376670,2.987,4146.0,4145.9,2.41202151]
[1759226376873,2.987,4146.0,4145.9,3.14556548]
[1759226377205,2.987,4146.0,4145.9,3.60066548]
[1759226377385,2.987,4146.0,4145.4,16.91226719]
[1759226377601,0.4739,4145.9,4144.5,0.4551]
[1759226377752,0.4739,4145.9,4144.3,2.984]
[1759226377753,2.4,4145.9,4145.5,2.41224817]
[1759226378094,2.5208,4145.9,4145.7,2.41212518]
[1759226378293,2.5208,4145.9,4145.8,2.41207969]
[1759226378501,2.4708,4145.9,4145.8,2.41207969]
[1759226378686,2.4708,4145.9,4145.7,2.4120913]
[1759226378869,2.4708,4145.9,4145.3,0.3491]
[1759226379283,2.4708,4145.9,4145.8,2.41207969]
[1759226379499,3.71246302,4146.0,4145.9,2.41202151]
[1759226379500,2.987,4146.0,4145.9,2.41202151]
[1759226379708,2.987,4146.0,4145.9,16.91202151]
[1759226380495,2.987,4146.0,4145.9,17.14032151]
[1759226380793,6.10638496,4146.3,4146.2,2.41183402]
[1759226381007,2.4,4146.2,4145.9,14.5]
[1759226381211,2.4,4146.2,4146.0,2.41196333]
[1759226381612,2.4,4146.2,4145.7,0.1208]
[1759226381810,2.4,4146.2,4146.1,2.41190516]
[1759226381999,2.4,4146.3,4146.2,2.41184699]
[1759226382199,2.978,4146.6,4146.5,2.41167249]
[1759226382717,0.72529728,4146.8,4146.6,2.41156846]
[1759226382884,3.12529728,4146.8,4146.5,2.53246049]
[1759226383210,3.12529728,4146.8,4146.6,2.41161433]
[1759226383211,0.4737,4146.7,4146.6,2.41161433]
[1759226383987,0.001,4146.7,4146.6,2.41161433]
[1759226384918,0.001,4146.7,4146.6,3.62824716]
[1759226385210,0.001,4146.7,4146.6,6.60024716]
[1759226385607,0.001,4146.7,4146.6,21.10024716]
[1759226386713,0.001,4146.7,4146.6,18.12824716]
[1759226386918,0.001,4146.7,4146.6,21.09824716]
[1759226387322,0.001,4146.7,4146.6,23.49824716]
[1759226387828,0.001,4148.5,4146.6,23.49824716]
[1759226388044,0.001,4148.5,4148.4,2.41056792]
[1759226388335,0.001,4148.5,4148.4,5.37856792]
[1759226388560,0.001,4148.5,4148.4,20.57686792]
[1759226388745,0.001,4148.5,4148.4,20.11676792]
[1759226389062,0.001,4148.5,4148.4,20.57586792]
[1759226389234,0.001,4148.5,4148.4,22.87451943]
[1759226391245,0.001,4148.5,4148.4,22.87051943]
[1759226391446,0.001,4148.5,4148.4,19.90751943]
[1759226391650,0.001,4148.5,4148.4,22.87051943]
[1759226391855,0.001,4148.5,4148.4,19.90751943]
[1759226392024,0.001,4148.5,4148.4,22.86951943]
[1759226392542,0.001,4148.5,4148.4,22.86851943]
[1759226393528,0.001,4148.5,4148.4,22.40641943]
[1759226393851,0.001,4148.5,4148.4,22.86551943]
[1759226394750,0.001,4148.5,4148.4,19.90751943]
[1759226394951,0.001,4148.5,4148.4,22.98302044]
[1759226396660,0.001,4148.5,4148.4,20.02602044]
[1759226396842,0.001,4148.5,4148.4,22.98102044]
[1759226398046,0.001,4148.5,4148.4,22.97702044]
[1759226398748,0.001,4148.5,4148.4,20.02602044]
[1759226398954,0.2383,4149.9,4148.4,20.02602044]
[1759226398955,0.46650974,4149.5,4149.4,2.40996079]
[1759226399965,0.46650974,4149.5,4149.4,16.90996079]
[1759226400330,0.001,4150.4,4149.7,2.40975605]
[1759226400538,0.001,4150.4,4149.8,2.40972219]
[1759226400737,0.72474709,4150.1,4149.4,17.445]
[1759226400927,0.711,4150.0,4149.4,14.5]
[1759226401127,0.711,4149.9,4149.5,2.40992339]
[1759226401366,0.72474709,4150.1,4149.4,14.5]
[1759226401367,0.711,4149.8,4149.4,14.5]
[1759226401541,0.792,4149.6,4149.4,14.5]
[1759226401861,3.50228132,4149.5,4148.2,2.41067629]
[1759226402068,0.711,4149.4,4148.3,2.944]
[1759226402363,1.503,4149.3,4148.4,2.41056605]
[1759226402568,0.711,4149.2,4148.4,2.41056605]
[1759226402764,0.711,4149.1,4148.2,2.41063275]
[1759226402950,0.792,4148.9,4148.1,2.41069864]
[1759226403153,0.711,4148.8,4148.3,14.5]
[1759226403356,0.792,4148.9,4148.3,14.5]
[1759226403587,0.4727,4148.9,4148.3,14.5]
[1759226403792,0.4727,4148.9,4148.4,2.41056133]
[1759226403986,0.711,4148.8,4148.3,16.91062562]
[1759226404311,0.711,4148.7,4148.3,16.91062562]
[1759226404475,0.711,4148.6,4148.3,14.5]
[1759226404802,0.711,4148.5,4148.3,14.5]
[1759226405003,0.711,4148.4,4148.3,14.5]
[1759226405159,1.1013,4148.4,4148.3,14.5]
[1759226405863,1.8933,4148.4,4148.3,14.5]
[1759226406069,6.70386792,4148.4,4148.0,0.002]
[1759226406271,4.2933,4148.4,4148.0,0.002]
[1759226406468,4.055,4148.4,4148.0,0.002]
[1759226406768,0.4727,4148.3,4148.0,0.002]
[1759226406992,0.711,4148.3,4148.0,0.002]
[1759226407210,2.8727,4148.7,4148.0,0.002]
[1759226407423,2.4,4148.7,4148.5,2.41045887]
[1759226407587,2.941,4148.8,4148.1,0.2392]
[1759226407779,0.4727,4148.7,4148.0,0.002]
[1759226407981,3.111,4148.7,4148.0,0.002]
[1759226408511,4.81049823,4148.6,4148.0,0.002]
[1759226408727,2.4,4148.5,4148.0,0.002]
[1759226409019,0.1208,4148.1,4148.0,0.002]
[1759226409177,5.4578,4148.1,4148.0,0.002]
[1759226409517,5.9305,4148.1,4148.0,0.002]
[1759226410090,5.9305,4148.1,4148.0,2.41280038]
[1759226410091,5.4578,4148.1,4148.0,2.41280038]
[1759226410300,3.0578,4148.1,4148.0,2.41280038]
[1759226410990,0.4727,4149.0,4148.9,2.41027742]
[1759226411218,0.1208,4149.0,4148.9,3.10857742]
[1759226411419,0.1218,4149.5,4148.9,0.1208]
[1759226411704,0.1218,4149.5,4149.0,14.5]
[1759226411705,0.711,4149.4,4149.0,14.5]
[1759226412040,0.792,4149.0,4148.0,0.002]
[1759226412199,2.4,4148.8,4148.0,0.1228]
[1759226412533,0.1208,4148.6,4148.0,14.6228]
[1759226412736,0.1208,4148.6,4148.2,2.41062965]
[1759226412903,0.1208,4148.6,4148.5,2.41050982]
[1759226413099,2.936,4148.9,4148.5,0.1208]
[1759226413398,0.1208,4149.2,4148.8,2.41031155]
[1759226413616,0.6751,4149.1,4148.5,0.1208]
[1759226413816,0.6751,4149.1,4148.8,2.41029741]
[1759226414041,0.6751,4149.1,4148.5,0.1208]
[1759226414042,0.6751,4149.0,4148.5,0.1208]
[1759226414201,0.1208,4148.9,4148.6,2.41045133]
[1759226414405,0.1208,4148.9,4148.6,2.41044559]
[1759226414406,2.934,4148.8,4148.6,2.41044559]
[1759226414625,0.4425,4148.7,4148.6,2.41044559]
[1759226414931,2.934,4148.8,4148.7,2.41039361]
[1759226415521,0.1208,4149.1,4149.0,2.41021932]
[1759226415728,1.2355,4150.0,4149.4,2.40998698]
[1759226415922,3.0548,4149.5,4149.1,2.41011297]
[1759226416123,0.4432,4149.4,4149.1,2.41011297]
[1759226416340,0.4432,4149.3,4149.2,2.41010218]
[1759226416637,0.4432,4149.3,4148.9,2.41023623]
[1759226416638,0.6739,4149.3,4148.9,2.41023623]
[1759226416843,0.6739,4149.3,4148.5,0.1208]
[1759226416844,0.6739,4149.2,4148.5,2.5313078]
[1759226417002,0.1208,4149.0,4148.5,0.1208]
[1759226417205,2.932,4148.9,4148.5,0.1208]
[1759226417441,2.932,4148.9,4148.7,2.41035269]
[1759226417638,2.932,4148.9,4148.6,2.41043994]
[1759226417837,3.3752,4148.9,4148.5,0.1208]
[1759226418139,3.3752,4148.9,4148.8,2.41033551]
[1759226418140,2.932,4148.9,4148.8,2.41033551]
[1759226418538,3.3752,4148.9,4148.5,2.41049616]
[1759226418741,0.4432,4148.8,4148.6,2.41043651]
[1759226418945,3.5123,4148.9,4148.1,2.41074226]
[1759226418946,0.1208,4148.6,4148.1,0.1208]
[1759226419119,0.564,4148.6,4148.5,2.41050982]
[1759226419324,0.564,4148.6,4148.4,2.41056595]
[1759226419529,0.4432,4148.5,4147.5,0.002]
[1759226419720,2.85127539,4148.4,4147.9,2.41084544]
[1759226420045,3.52517539,4148.4,4148.0,2.41278615]
[1759226420247,0.4432,4148.3,4148.1,2.41073404]
[1759226420637,2.85127539,4148.4,4148.2,2.41068415]
[1759226420844,2.85127539,4148.4,4148.3,2.41062603]
[1759226421042,2.85127539,4148.4,4148.3,2.65472603]
[1759226421817,2.85127539,4148.4,4148.3,2.41062603]
[1759226422244,2.85127539,4148.4,4148.3,2.65472603]
[1759226422544,2.85127539,4148.4,4148.0,0.002]
[1759226422545,3.29447539,4148.4,4148.0,0.002]
[1759226422767,0.4432,4148.3,4148.0,0.002]
[1759226422914,0.6739,4148.3,4148.0,0.002]
[1759226423117,0.4432,4148.2,4148.0,0.002]
[1759226423346,0.4432,4148.2,4148.1,2.41073639]
[1759226423756,2.85127539,4148.4,4148.3,2.41062603]
[1759226423916,2.85127539,4148.4,4148.0,0.002]
[1759226423917,2.85127539,4148.4,4148.0,2.41279322]
[1759226424117,2.85127539,4148.4,4148.2,2.41064587]
[1759226424315,2.85127539,4148.4,4148.0,2.41279647]
[1759226424520,2.85127539,4148.4,4148.0,0.002]
[1759226424745,0.4432,4148.3,4148.1,2.41073102]
[1759226425258,0.4432,4148.3,4148.0,2.41276267]
[1759226425625,0.4432,4148.3,4148.0,0.002]
[1759226425858,0.4432,4148.2,4148.0,0.002]
[1759226426222,0.4432,4148.2,4148.0,2.41278793]
[1759226426418,0.4432,4148.2,4148.0,0.002]
[1759226426645,0.4432,4148.1,4148.0,0.002]
[1759226426871,0.6739,4148.1,4148.0,0.002]
[1759226427823,0.4432,4148.1,4148.0,0.002]
[1759226428643,0.6739,4148.1,4148.0,0.002]
[1759226429220,3.08464226,4148.1,4148.0,0.002]
[1759226429429,1.78906359,4148.1,4148.0,0.002]
[1759226429654,1.90986359,4148.1,4148.0,0.002]
[1759226429823,4.30986359,4148.1,4148.0,0.002]
[1759226430151,6.04670585,4148.1,4148.0,0.002]
[1759226430351,6.54996359,4148.1,4148.0,0.002]
[1759226430521,8.96070585,4148.1,4148.0,0.002]
[1759226430925,6.99316359,4148.1,4148.0,0.002]
[1759226431522,7.22386359,4148.1,4148.0,0.002]
[1759226431823,10.42660585,4148.1,4148.0,0.002]
[1759226432034,10.94179992,4148.1,4148.0,0.002]
[1759226432753,8.30035766,4148.1,4148.0,0.002]
[1759226432953,9.75270585,4148.1,4148.0,0.002]
[1759226433753,7.34196359,4148.1,4148.0,0.002]
[1759226433926,5.4348,4148.1,4148.0,0.002]
[1759226434126,5.4348,4148.1,4148.0,0.2461]
[1759226434521,5.4348,4148.1,4148.0,2.65690038]
[1759226434522,3.0348,4148.1,4148.0,2.65690038]
[1759226434727,0.1208,4148.1,4148.0,3.12400038]
[1759226434940,3.0288,4148.1,4148.0,3.12400038]
[1759226435723,2.908,4148.1,4148.0,3.12400038]
[1759226436030,2.4102865,4148.9,4148.0,3.12400038]
[1759226436031,0.1208,4148.5,4148.3,2.41060166]
[1759226436231,2.4,4148.3,4148.1,2.41073222]
[1759226436446,2.4,4148.3,4148.2,2.41068415]
[1759226436766,2.4,4148.3,4148.0,0.002]
[1759226437060,0.4432,4148.2,4148.0,0.002]
[1759226437383,3.0258,4148.1,4148.0,0.002]
[1759226437565,5.869,4148.1,4148.0,0.002]
[1759226437738,9.30244226,4148.1,4148.0,0.002]
[1759226440429,20.31903355,4147.6,4147.5,0.002]
[1759226440655,26.00944557,4147.6,4147.5,0.002]
[1759226440831,26.00944557,4147.6,4147.1,0.002]
[1759226440832,0.792,4146.8,4143.8,1.72467167]
[1759226441031,3.333,4147.0,4144.0,0.2441]
[1759226441032,14.71600067,4146.0,4144.0,0.2441]
[1759226441263,2.4,4145.3,4144.2,2.41295706]
[1759226441566,2.4,4145.1,4144.5,2.41282594]
[1759226441895,2.929,4145.0,4144.6,0.2441]
[1759226442099,2.929,4144.9,4144.7,2.41271924]
[1759226442300,2.929,4144.9,4144.1,0.31243828]
[1759226442301,2.929,4144.8,4144.6,0.4523]
[1759226442510,3.192,4145.8,4144.7,2.41271985]
[1759226442686,3.192,4145.6,4144.7,0.4523]
[1759226443061,3.192,4145.6,4144.8,0.2263]
[1759226443272,3.192,4145.6,4144.9,2.41258867]
[1759226443477,3.192,4145.6,4144.8,0.2263]
[1759226443965,3.192,4145.6,4145.1,2.41248382]
[1759226444278,2.4,4145.4,4145.3,2.41237063]
[1759226444466,2.925,4145.4,4145.3,0.2263]
[1759226445315,2.925,4145.4,4145.3,2.63867063]
[1759226445611,2.925,4145.4,4145.3,0.6786]
[1759226445772,0.792,4146.2,4145.3,0.6786]
[1759226445975,0.792,4146.0,4145.4,2.41229524]
[1759226446505,0.792,4146.0,4145.4,2.41230305]
[1759226446711,0.792,4146.0,4145.5,2.41225261]
[1759226446891,0.792,4146.2,4145.6,0.2263]
[1759226447074,1.37135117,4146.2,4145.6,0.2263]
[1759226447414,2.921,4146.1,4145.6,0.2263]
[1759226447568,2.921,4146.1,4145.2,0.2263]
[1759226447769,2.921,4146.1,4145.2,2.63871972]
[1759226448086,2.921,4146.1,4145.3,2.41237063]
[1759226448287,2.921,4146.1,4145.4,2.41229062]
[1759226448507,2.921,4146.1,4145.5,2.41224197]
[1759226448729,3.89976958,4146.1,4145.3,2.41231838]
[1759226448932,3.89976958,4146.1,4145.3,2.41234143]
[1759226449290,3.89976958,4146.1,4145.5,2.41221301]
[1759226449490,3.89976958,4146.1,4145.6,2.41218388]
[1759226449726,3.89976958,4146.1,4145.6,0.2263]
[1759226449888,3.89976958,4146.1,4145.8,2.41207961]
[1759226450084,2.4,4146.0,4145.9,2.41202151]
[1759226450329,0.4534,4147.0,4146.0,2.63820978]
[1759226450497,0.1208,4146.1,4146.0,2.63826022]
[1759226450891,0.4534,4147.0,4146.0,0.6786]
[1759226451091,2.41090385,4147.9,4146.1,0.2263]
[1759226451324,0.1208,4147.2,4146.6,0.1208]
[1759226451627,3.47152651,4147.8,4146.6,0.1208]
[1759226451628,2.921,4147.1,4146.6,2.41160367]
[1759226451825,3.3744,4147.0,4146.5,2.41166115]
[1759226451997,3.6046,4146.9,4146.2,2.41183936]
[1759226452324,2.923,4146.8,4146.4,2.41170746]
[1759226452519,3.3764,4146.8,4145.5,0.4523]
[1759226452722,3.3764,4146.8,4145.6,0.28523]
[1759226452911,3.4222,4146.7,4145.5,0.2263]
[1759226453430,0.792,4146.5,4145.9,2.41198242]
[1759226453719,2.4,4146.3,4145.5,2.41221305]
[1759226453928,2.4,4146.3,4145.2,0.2263]
[1759226453929,2.4,4146.3,4145.4,0.2263]
[1759226454141,0.792,4146.2,4144.4,2.4128945]
[1759226454342,0.792,4146.2,4145.0,0.2263]
[1759226454343,1.2454,4146.2,4145.0,0.2263]
[1759226454644,2.92,4146.1,4145.9,2.41202055]
[1759226454795,2.92,4146.1,4145.7,2.41213787]
[1759226454796,2.4,4146.0,4145.7,2.41213787]
[1759226454995,2.4,4146.0,4145.8,2.41205664]
[1759226455230,3.076874,4146.0,4144.1,2.4]
[1759226455528,3.076874,4146.0,4142.6,2.41389524]
[1759226455529,3.530274,4146.0,4144.9,0.2263]
[1759226455691,3.530274,4146.0,4145.6,2.41214073]
[1759226455892,3.530274,4146.0,4145.7,2.41209428]
[1759226456092,3.530274,4146.0,4145.6,2.41219606]
[1759226456307,3.530274,4146.0,4145.5,2.41224759]
[1759226456507,3.530274,4146.0,4145.7,2.41209756]
[1759226457511,2.4,4146.0,4145.9,2.41202151]
[1759226458223,2.4,4146.0,4145.5,2.41224871]
[1759226458415,2.4,4146.0,4145.7,2.41210449]
[1759226458762,2.4,4146.0,4145.9,2.41202151]
[1759226458967,2.915,4146.0,4145.9,2.41202151]
[1759226459260,2.915,4146.0,4145.9,3.09062151]
[1759226459840,2.915,4146.0,4145.9,2.63832151]
[1759226460552,3.0836,4147.3,4146.5,2.41165186]
[1759226460736,2.4,4147.1,4146.5,2.4116642]
[1759226460948,2.4,4147.1,4145.9,0.6786]
[1759226460949,2.4,4147.1,4146.8,2.41145623]
[1759226461144,0.12048756,4148.2,4145.4,2.41226913]
[1759226461145,0.4534,4147.5,4146.3,0.6786]
[1759226461464,2.801,4147.4,4147.1,2.41128426]
[1759226461757,2.801,4147.4,4146.4,2.63798313]
[1759226461758,0.9128,4147.2,4146.8,2.41145869]
[1759226461957,0.792,4147.2,4147.0,2.4113592]
[1759226462255,0.8044,4147.1,4146.1,0.3471]
[1759226462461,0.792,4146.8,4145.7,0.2263]
[1759226462623,0.1208,4146.2,4146.1,2.41190516]
[1759226462823,3.0308,4146.2,4146.1,2.41190516]
[1759226463048,3.0308,4146.2,4146.1,2.63820516]
[1759226463254,2.91,4146.2,4146.1,3.09050516]
[1759226463415,0.1208,4146.4,4146.3,2.41178882]
[1759226463615,0.1208,4146.4,4145.8,2.41203461]
[1759226463616,3.0836,4146.3,4145.8,2.41203461]
[1759226463850,0.4534,4146.2,4145.8,2.41203461]
[1759226464052,0.4534,4146.2,4146.0,2.41195238]
[1759226464281,2.4,4146.3,4145.7,0.4523]
[1759226464481,0.4534,4146.2,4145.5,2.41225358]
[1759226464785,0.4534,4146.2,4145.2,0.2263]
[1759226464953,1.05266,4146.2,4145.2,0.2263]
[1759226465355,1.05266,4146.2,4145.8,2.41203889]
[1759226465600,0.4534,4146.1,4145.9,2.41202117]
[1759226465753,2.4,4145.9,4145.8,2.41207969]
[1759226466676,0.792,4146.7,4145.8,0.6786]
[1759226467001,3.192,4146.5,4145.8,2.41206151]
[1759226467203,0.792,4146.3,4145.4,0.2263]
[1759226467523,2.4,4146.1,4146.0,2.41196333]
[1759226467698,2.906,4146.1,4146.0,2.41196333]
[1759226468192,2.906,4146.1,4146.0,2.63826333]
[1759226468767,2.906,4146.1,4145.8,2.41207589]
[1759226468768,2.905,4146.1,4145.8,2.41207589]
[1759226468972,0.2906,4146.0,4145.8,2.41207589]
[1759226469180,2.905,4146.1,4145.8,2.41203951]
[1759226469377,2.905,4146.1,4146.0,2.41196333]
[1759226469698,2.907,4146.1,4146.0,2.63825651]
[1759226470995,2.907,4146.1,4146.0,3.09055651]
[1759226471400,2.905,4146.4,4146.0,0.6786]
[1759226471604,2.905,4146.3,4146.2,2.41184699]
[1759226471895,2.905,4146.3,4146.1,2.41190516]
[1759226471896,2.906,4146.4,4146.1,2.41190516]
[1759226472103,2.906,4146.3,4146.2,2.41184699]
[1759226473704,3.0268,4146.3,4146.2,2.41184699]
[1759226473885,3.0248,4146.3,4146.2,2.41184699]
[1759226475399,3.0248,4146.3,4146.2,2.64724699]
[1759226476114,2.904,4146.3,4146.2,3.08584699]
[1759226476471,0.51396835,4147.6,4146.2,1.23585683]
[1759226476706,0.1208,4147.3,4146.3,3.08574837]
[1759226476872,0.1208,4147.3,4146.9,0.1208]
[1759226476873,2.901,4147.3,4146.9,0.1208]
[1759226477206,2.901,4147.3,4146.4,0.674]
[1759226477207,0.1208,4147.1,4146.5,0.1208]
[1759226477502,0.1208,4147.1,4147.0,2.41138172]
[1759226478380,0.1208,4147.1,4147.0,2.65398172]
[1759226478585,0.6767,4148.3,4147.6,2.4110217]
[1759226478801,4.39783113,4148.2,4147.7,2.41096377]
[1759226479002,0.1208,4147.5,4147.0,14.5]
[1759226479203,0.1208,4147.7,4147.6,2.41103288]
[1759226479406,1.7068,4147.7,4147.6,2.41103288]
[1759226479921,1.586,4147.7,4147.6,3.08503288]
[1759226480125,1.586,4147.7,4147.6,3.75544698]
[1759226480489,1.586,4147.7,4147.6,3.20583288]
[1759226480714,0.1208,4148.2,4148.1,2.41074226]
[1759226480925,3.0178,4148.2,4148.1,2.41074226]
[1759226482498,3.0158,4148.2,4148.1,2.41074226]
[1759226482831,3.0158,4148.2,4148.1,2.65334226]
[1759226483029,3.0158,4148.2,4148.1,2.41074226]
[1759226484036,3.0158,4148.2,4148.1,3.08474226]
[1759226484232,3.0158,4148.2,4148.1,17.58474226]
[1759226484533,3.0158,4148.2,4148.1,17.15334226]
[1759226484734,2.895,4148.2,4148.1,17.58474226]
[1759226484899,0.001,4148.4,4148.3,2.41062603]
[1759226485105,2.892,4148.4,4148.3,2.41062603]
[1759226485300,2.892,4148.4,4148.3,2.65322603]
[1759226485499,0.001,4148.4,4148.3,2.65322603]
[1759226485719,0.001,4148.4,4148.3,3.08462603]
[1759226487314,0.001,4148.4,4148.3,2.65322603]
[1759226487517,0.001,4148.4,4148.3,3.08462603]
[1759226488304,0.001,4148.4,4148.3,3.64865354]
[1759226488505,0.001,4148.4,4148.3,18.14865354]
[1759226489900,0.001,4148.4,4148.3,17.47465354]
[1759226490198,0.001,4148.4,4148.3,14.5]
[1759226490399,0.001,4148.4,4148.3,16.91062603]
[1759226490634,0.001,4148.4,4148.3,14.5]
[1759226490843,0.001,4148.4,4148.3,16.91062603]
[1759226492414,0.4468,4148.4,4148.3,14.5]
[1759226492611,0.6777,4148.4,4148.3,14.5]
[1759226492817,0.6777,4148.4,4148.3,16.91062603]
[1759226493214,0.6777,4148.4,4148.3,14.5]
[1759226493626,0.6777,4148.4,4148.2,2.41066491]
[1759226493842,0.6777,4148.4,4148.0,2.41079717]
[1759226493843,3.5577,4148.3,4148.0,2.41079877]
[1759226494158,0.6767,4148.2,4148.0,14.5]
[1759226494345,0.6767,4148.1,4146.8,0.2426]
[1759226494548,2.4,4147.9,4147.0,2.41132652]
[1759226494722,0.792,4147.7,4146.5,0.674]
[1759226494919,0.792,4147.7,4147.1,14.5]
[1759226494920,0.6767,4147.6,4147.1,14.5]
[1759226495154,0.6767,4147.5,4147.1,16.91131821]
[1759226495458,0.6767,4147.4,4147.1,16.91131821]
[1759226495665,2.881,4147.3,4147.1,14.5]
[1759226495829,2.881,4147.3,4147.2,2.41126543]
[1759226496027,2.881,4147.3,4147.1,17.15391336]
[1759226496230,2.881,4147.3,4147.2,2.41126543]
[1759226496651,0.792,4147.8,4147.4,2.41112112]
[1759226496849,3.5547,4147.7,4147.1,2.41130549]
[1759226497359,1.4687,4147.6,4146.5,14.5]
[1759226497594,3.87976967,4147.6,4146.9,2.41142474]
[1759226497762,0.6767,4147.5,4146.9,2.41142474]
[1759226497961,0.4458,4147.4,4146.5,14.5]
[1759226498260,1.4687,4147.3,4146.7,2.41154246]
[1759226498561,0.792,4147.1,4146.5,14.5]
[1759226498855,0.792,4147.1,4146.5,16.91162657]
[1759226499234,0.792,4147.1,4146.5,14.5]
[1759226499430,0.792,4147.1,4146.5,16.91165242]
[1759226499758,2.41138711,4147.0,4146.5,14.5]
[1759226499958,1.4687,4146.9,4146.5,14.5]
[1759226500162,0.6767,4146.8,4146.5,14.5]
[1759226500365,2.877,4146.7,4146.5,14.5]
[1759226500539,0.1208,4146.6,4146.5,14.5]
[1759226500864,0.001,4148.4,4146.5,18.051]
[1759226501163,0.1208,4148.1,4147.4,2.41109204]
[1759226501366,0.1208,4148.1,4147.6,2.41098417]
[1759226501570,0.1208,4148.1,4147.7,16.91095953]
[1759226501739,0.5666,4148.1,4147.7,14.5]
[1759226501939,0.1208,4147.8,4147.7,14.5]